fUSD/lending_fUSD_20250213
["ID","MTS","AMOUNT","RATE_DAILY","PERIOD"]
[353018657,1739487039440,-500.0,0.00014107,2]
[353018659,1739487039452,-1228.8,0.00014107,2]
[353018661,1739487039463,-500.0,0.00014107,2]
[353018663,1739487039472,-500.0,0.00014107,2]
[353018665,1739487039481,-4987.5,0.00014107,2]
[353018667,1739487039491,-500.0,0.00014107,2]
[353018669,1739487039500,-500.0,0.00014107,2]
[353018671,1739487039510,-500.0,0.00014107,2]
[353018673,1739487039520,-560.27,0.00014107,2]
[353018675,1739487039529,-992.98,0.00014107,2]
[353018677,1739487039538,-3337.93,0.00014107,2]
[353018679,1739487039547,-924.44,0.00014107,2]
[353018681,1739487039555,-500.0,0.00014107,2]
[353018683,1739487039563,-825.98,0.00014107,2]
[353018685,1739487039572,-1340.76,0.00014107,2]
[353018687,1739487039580,-2620.05,0.00014107,2]
[353018689,1739487039590,-1967.28,0.00014107,2]
[353018691,1739487039600,-500.0,0.00014107,2]
[353018693,1739487039610,-1579.3,0.00014107,2]
[353018695,1739487039620,-500.0,0.00014107,2]
[353018697,1739487039629,-500.0,0.00014108,2]
[353018699,1739487039639,-500.0,0.00014108,2]
[353018701,1739487039648,-1314.28,0.00014108,2]
[353018703,1739487039657,-500.0,0.00014108,2]
[353018705,1739487039667,-500.0,0.00014108,2]
[353018707,1739487039677,-500.0,0.00014108,2]
[353018709,1739487039686,-500.0,0.00014108,2]
[353018711,1739487039695,-1385.21,0.00014108,2]
[353018713,1739487039705,-500.0,0.00014108,2]
[353018715,1739487039714,-500.0,0.00014108,2]
[353018717,1739487039724,-500.0,0.00014108,2]
[353018719,1739487039733,-500.0,0.00014108,2]
[353018721,1739487039742,-500.0,0.00014108,2]
[353018723,1739487039751,-1270.53,0.00014108,2]
[353018725,1739487039761,-1591.93,0.00014108,2]
[353018727,1739487039770,-611.37,0.00014108,2]
[353018729,1739487039779,-2775.18,0.00014108,2]
[353018731,1739487039789,-877.23,0.00014108,2]
[353018733,1739487039798,-400.9,0.00014108,2]
[353018735,1739487039807,-504.22,0.00014108,2]
[353018737,1739487039816,-1659.27,0.00014108,2]
[353018739,1739487039825,-732.38,0.00014108,2]
[353018741,1739487039835,-500.0,0.00014109,2]
[353018743,1739487039844,-516.65,0.00014109,2]
[353018745,1739487039853,-590.11272425,0.00014109,2]
[353018746,1739487039863,-932.35,0.00014109,2]
[353018748,1739487039872,-634.81,0.00014109,2]
[353018751,1739487039881,-500.0,0.00014109,2]
[353018753,1739487039891,-968.56,0.00014109,2]
[353018755,1739487039900,-580.65646233,0.00014109,2]
[353018757,1739487039910,-500.0,0.00014109,2]
[353018759,1739487039919,-500.0,0.00014109,2]
[353018761,1739487039929,-849.63,0.00014109,2]
[353018762,1739487039939,-500.0,0.00014188,2]
[353018776,1739487040058,-2140.4,0.00014188,2]
[353018778,1739487040068,-500.0,0.00014189,2]
[353018780,1739487040078,-500.0,0.00014189,2]
[353018782,1739487040087,-585.35253559,0.00014189,2]
[353018784,1739487040096,-418.49,0.00014189,2]
[353018786,1739487040105,-535.0,0.00014189,2]
[353018788,1739487040113,-5243.95,0.00014189,2]
[353018790,1739487040122,-500.0,0.00014189,2]
[353018792,1739487040130,-1228.8,0.00014189,2]
[353018794,1739487040138,-500.0,0.00014189,2]
[353018796,1739487040147,-4987.5,0.00014189,2]
[353018798,1739487040155,-500.0,0.00014189,2]
[353018800,1739487040164,-500.0,0.00014189,2]
[353018802,1739487040173,-500.0,0.00014189,2]
[353018804,1739487040182,-560.27,0.00014189,2]
[353018806,1739487040191,-992.98,0.00014189,2]
[353018808,1739487040200,-3337.93,0.00014189,2]
[353018810,1739487040208,-924.44,0.00014189,2]
[353018811,1739487040217,-500.0,0.00014189,2]
[353018813,1739487040227,-825.98,0.00014189,2]
[353018814,1739487040236,-1340.76,0.00014189,2]
[353018816,1739487040246,-2620.05,0.00014189,2]
[353018818,1739487040255,-1967.28,0.00014189,2]
[353018820,1739487040265,-500.0,0.00014189,2]
[353018822,1739487040275,-1579.3,0.00014189,2]
[353018824,1739487040284,-500.0,0.00014189,2]
[353018826,1739487040293,-500.0,0.0001419,2]
[353018828,1739487040303,-600.23,0.0001419,2]
[353018830,1739487040313,-1314.28,0.0001419,2]
[353018832,1739487040322,-500.0,0.0001419,2]
[353018834,1739487040331,-169.85,0.0001419,2]
[353018836,1739487040341,-500.0,0.0001419,2]
[353018838,1739487040350,-500.0,0.0001419,2]
[353018840,1739487040359,-1385.21,0.0001419,2]
[353018842,1739487040368,-500.0,0.0001419,2]
[353018844,1739487040378,-396.64,0.0001419,2]
[353018846,1739487040391,-185.28,0.0001419,2]
[353018848,1739487040400,-500.0,0.0001419,2]
[353018850,1739487040409,-500.0,0.0001419,2]
[353018852,1739487040419,-1270.53,0.0001419,2]
[353018854,1739487040429,-1591.93,0.0001419,2]
[353018856,1739487040438,-611.37,0.0001419,2]
[353018858,1739487040447,-2775.18,0.0001419,2]
[353018860,1739487040458,-877.23,0.0001419,2]
[353018862,1739487040468,-504.22,0.0001419,2]
[353018864,1739487040478,-1659.27,0.0001419,2]
[353018866,1739487040488,-732.38,0.0001419,2]
[353018868,1739487040497,-500.0,0.00014191,2]
[353018870,1739487040507,-516.65,0.00014191,2]
[353018872,1739487040516,-932.35,0.00014191,2]
[353018874,1739487040525,-634.81,0.00014191,2]
[353018876,1739487040534,-500.0,0.00014191,2]
[353018878,1739487040544,-968.56,0.00014191,2]
[353018880,1739487040553,-500.0,0.00014191,2]
[353018882,1739487040563,-500.0,0.00014191,2]
[353018884,1739487040572,-849.63,0.00014191,2]
[353018886,1739487040582,-500.0,0.0001427,2]
[353018887,1739487040591,-2140.4,0.0001427,2]
[353018889,1739487040600,-500.0,0.00014271,2]
[353018891,1739487040610,-500.0,0.00014271,2]
[353018893,1739487040621,-5243.95,0.00014271,2]
[353018895,1739487040630,-500.0,0.00014271,2]
[353018898,1739487040639,-1228.8,0.00014271,2]
[353018900,1739487040648,-500.0,0.00014271,2]
[353018902,1739487040658,-4987.5,0.00014271,2]
[353018904,1739487040668,-500.0,0.00014271,2]
[353018905,1739487040677,-500.0,0.00014271,2]
[353018907,1739487040687,-500.0,0.00014271,2]
[353018909,1739487040696,-560.27,0.00014271,2]
[353018911,1739487040706,-992.98,0.00014271,2]
[353018913,1739487040715,-3337.93,0.00014271,2]
[353018915,1739487040723,-924.44,0.00014271,2]
[353018917,1739487040732,-500.0,0.00014271,2]
[353018919,1739487040742,-825.98,0.00014271,2]
[353018921,1739487040751,-1340.76,0.00014271,2]
[353018923,1739487040760,-2620.05,0.00014271,2]
[353018925,1739487040770,-1967.28,0.00014271,2]
[353018927,1739487040781,-500.0,0.00014271,2]
[353018929,1739487040790,-1579.3,0.00014271,2]
[353018931,1739487040800,-500.0,0.00014271,2]
[353018933,1739487040810,-500.0,0.00014272,2]
[353018935,1739487040820,-1314.28,0.00014272,2]
[353018937,1739487040829,-500.0,0.00014272,2]
[353018939,1739487040839,-500.0,0.00014272,2]
[353018941,1739487040850,-500.0,0.00014272,2]
[353018943,1739487040859,-1385.21,0.00014272,2]
[353018945,1739487040869,-500.0,0.00014272,2]
[353018947,1739487040879,-500.0,0.00014272,2]
[353018949,1739487040888,-500.0,0.00014272,2]
[353018951,1739487040897,-1270.53,0.00014272,2]
[353018953,1739487040906,-1591.93,0.00014272,2]
[353018955,1739487040916,-611.37,0.00014272,2]
[353018957,1739487040925,-2775.18,0.00014272,2]
[353018959,1739487040934,-877.23,0.00014272,2]
[353018961,1739487040944,-504.22,0.00014272,2]
[353018963,1739487040953,-1659.27,0.00014272,2]
[353018965,1739487040962,-732.38,0.00014272,2]
[353018967,1739487040972,-500.0,0.00014273,2]
[353018969,1739487040981,-516.65,0.00014273,2]
[353018971,1739487040990,-932.35,0.00014273,2]
[353018973,1739487041000,-634.81,0.00014273,2]
[353018975,1739487041009,-500.0,0.00014273,2]
[353018977,1739487041018,-968.56,0.00014273,2]
[353018979,1739487041027,-500.0,0.00014273,2]
[353018981,1739487041036,-500.0,0.00014273,2]
[353018983,1739487041045,-849.63,0.00014273,2]
[353018985,1739487041054,-2025.0,0.0001428,2]
[353018987,1739487041063,-1273.0,0.0001428,2]
[353018989,1739487041073,-569.0,0.0001428,2]
[353018990,1739487041082,-638.0,0.0001428,2]
[353018992,1739487041091,-3915.0,0.0001428,2]
[353018994,1739487041103,-150.0,0.0001428,2]
[353018996,1739487041113,-1109.0,0.0001428,2]
[353018998,1739487041123,-500.0,0.00014352,2]
[353019000,1739487041131,-2140.4,0.00014352,2]
[353019002,1739487041141,-500.0,0.00014353,2]
[353019004,1739487041150,-500.0,0.00014353,2]
[353019006,1739487041160,-5243.95,0.00014353,2]
[353019008,1739487041169,-500.0,0.00014353,2]
[353019010,1739487041178,-1228.8,0.00014353,2]
[353019012,1739487041187,-500.0,0.00014353,2]
[353019014,1739487041197,-4987.5,0.00014353,2]
[353019016,1739487041206,-500.0,0.00014353,2]
[353019018,1739487041215,-500.0,0.00014353,2]
[353019020,1739487041224,-500.0,0.00014353,2]
[353019022,1739487041234,-560.27,0.00014353,2]
[353019024,1739487041243,-992.98,0.00014353,2]
[353019026,1739487041252,-3337.93,0.00014353,2]
[353019028,1739487041261,-924.44,0.00014353,2]
[353019030,1739487041271,-376.03861755,0.00014353,2]
[353019032,1739487041280,-825.98,0.00014353,2]
[353019034,1739487041289,-1340.76,0.00014353,2]
[353019036,1739487041298,-2620.05,0.00014353,2]
[353019038,1739487041308,-1967.28,0.00014353,2]
[353019040,1739487041317,-500.0,0.00014353,2]
[353019042,1739487041326,-1579.3,0.00014353,2]
[353019044,1739487041335,-500.0,0.00014353,2]
[353019046,1739487041344,-500.0,0.00014354,2]
[353019048,1739487041354,-1314.28,0.00014354,2]
[353019050,1739487041364,-500.0,0.00014354,2]
[353019052,1739487041374,-500.0,0.00014354,2]
[353019054,1739487041385,-408.62,0.00014354,2]
[353019056,1739487041395,-1385.21,0.00014354,2]
[353019058,1739487041404,-500.0,0.00014354,2]
[353019059,1739487041413,-500.0,0.00014354,2]
[353019061,1739487041423,-500.0,0.00014354,2]
[353019064,1739487041433,-1270.53,0.00014354,2]
[353019065,1739487041442,-1591.93,0.00014354,2]
[353019067,1739487041452,-611.37,0.00014354,2]
[353019069,1739487041462,-2775.18,0.00014354,2]
[353019070,1739487041471,-877.23,0.00014354,2]
[353019071,1739487041481,-504.22,0.00014354,2]
[353019072,1739487041490,-1659.27,0.00014354,2]
[353019073,1739487041499,-732.38,0.00014354,2]
[353019074,1739487041508,-500.0,0.00014356,2]
[353019075,1739487041517,-516.65,0.00014356,2]
[353019076,1739487041526,-932.35,0.00014356,2]
[353019077,1739487041535,-634.81,0.00014356,2]
[353019078,1739487041544,-500.0,0.00014356,2]
[353019079,1739487041554,-968.56,0.00014356,2]
[353019080,1739487041563,-500.0,0.00014356,2]
[353019081,1739487041573,-500.0,0.00014356,2]
[353019083,1739487041583,-849.63,0.00014356,2]
[353019085,1739487041592,-2558.99642595,0.00014375,2]
[353019087,1739487041602,-166.66,0.00014409,2]
[353019089,1739487041611,-163.20199949,0.00014418,2]
[353019092,1739487041621,-500.0,0.00014434,2]
[353019093,1739487041631,-2140.4,0.00014434,2]
[353019095,1739487041640,-641.97445174,0.00014435,2]
[353019097,1739487041649,-500.0,0.00014435,2]
[353019099,1739487041658,-2943.58148617,0.00014435,2]
[353019114,1739487041790,-493.04617852,0.00014435,2]
[353019116,1739487041802,-1807.32233531,0.00014435,2]
[353019118,1739487041812,-500.0,0.00014435,2]
[353019120,1739487041822,-1228.8,0.00014435,2]
[353019122,1739487041832,-121.721395,0.00014435,2]
[353019166,1739487042244,-186.67666508,0.00014106,2]
[353019168,1739487042258,-500.0,0.00014106,2]
[353019170,1739487042269,-500.0,0.00014106,2]
[353019172,1739487042282,-360.07704883,0.00014106,2]
[353019174,1739487042294,-378.278605,0.00014435,2]
[353019177,1739487042304,-4987.5,0.00014435,2]
[353019179,1739487042314,-500.0,0.00014435,2]
[353019181,1739487042324,-500.0,0.00014435,2]
[353019183,1739487042333,-500.0,0.00014435,2]
[353019185,1739487042343,-560.27,0.00014435,2]
[353019187,1739487042354,-992.98,0.00014435,2]
[353019189,1739487042364,-487.9681669,0.00014435,2]
[353019191,1739487042377,-2849.9618331,0.00014435,2]
[353019194,1739487042390,-924.44,0.00014435,2]
[353019196,1739487042401,-825.98,0.00014435,2]
[353019198,1739487042412,-249.61813117,0.00014435,2]
[353019200,1739487042424,-1091.14186883,0.00014435,2]
[353019202,1739487042435,-2620.05,0.00014435,2]
[353019204,1739487042446,-1967.28,0.00014435,2]
[353019207,1739487042457,-500.0,0.00014435,2]
[353019209,1739487042467,-1579.3,0.00014435,2]
[353019211,1739487042478,-500.0,0.00014435,2]
[353019213,1739487042489,-20.16281317,0.00014436,2]
[353019215,1739487042502,-1294.11718683,0.00014436,2]
[353019217,1739487042514,-202.1105286,0.00014436,2]
[353019220,1739487042524,-500.0,0.00014436,2]
[353019222,1739487042534,-1385.21,0.00014436,2]
[353019224,1739487042545,-500.0,0.00014436,2]
[353019226,1739487042555,-500.0,0.00014436,2]
[353019228,1739487042566,-500.0,0.00014436,2]
[353019230,1739487042581,-1270.53,0.00014436,2]
[353019232,1739487042591,-1591.93,0.00014436,2]
[353019234,1739487042604,-611.37,0.00014436,2]
[353019236,1739487042615,-2775.18,0.00014436,2]
[353019239,1739487042626,-877.23,0.00014436,2]
[353019241,1739487042642,-504.22,0.00014436,2]
[353019243,1739487042653,-1659.27,0.00014436,2]
[353019245,1739487042665,-732.38,0.00014436,2]
[353019247,1739487042679,-500.0,0.00014438,2]
[353019249,1739487042689,-516.65,0.00014438,2]
[353019251,1739487042699,-500.0,0.00014438,2]
[353019253,1739487042710,-968.56,0.00014438,2]
[353019255,1739487042720,-500.0,0.00014438,2]
[353019258,1739487042731,-500.0,0.00014438,2]
[353019260,1739487042741,-849.63,0.00014438,2]
[353019262,1739487042751,-500.0,0.00014516,2]
[353019265,1739487042763,-2140.4,0.00014516,2]
[353019267,1739487042773,-500.0,0.00014518,2]
[353019269,1739487042785,-5243.95,0.00014518,2]
[353019271,1739487042795,-500.0,0.00014518,2]
[353019273,1739487042806,-1228.8,0.00014518,2]
[353019275,1739487042817,-4987.5,0.00014518,2]
[353019279,1739487042827,-189.32602741,0.00014518,2]
[353019283,1739487042847,-494.0,0.00014518,2]
[353019286,1739487042864,-500.0,0.00014518,2]
[353019289,1739487042878,-560.27,0.00014518,2]
[353019292,1739487042894,-992.98,0.00014518,2]
[353019295,1739487042911,-3337.93,0.00014518,2]
[353019297,1739487042927,-924.44,0.00014518,2]
[353019299,1739487042939,-825.98,0.00014518,2]
[353019302,1739487042956,-1340.76,0.00014518,2]
[353019305,1739487042972,-2620.05,0.00014518,2]
[353019307,1739487042989,-1375.22625716,0.00014518,2]
[353019310,1739487043010,-592.05374284,0.00014518,2]
[353019313,1739487043026,-500.0,0.00014518,2]
[353019318,1739487043042,-1579.3,0.00014518,2]
[353019322,1739487043058,-500.0,0.00014518,2]
[353019325,1739487043075,-1314.28,0.00014519,2]
[353019328,1739487043090,-500.0,0.00014519,2]
[353019330,1739487043109,-1385.21,0.00014519,2]
[353019333,1739487043123,-500.0,0.00014519,2]
[353019336,1739487043141,-218.89,0.00014519,2]
[353019338,1739487043153,-315.98786735,0.00014519,2]
[353019340,1739487043166,-1270.53,0.00014519,2]
[353019343,1739487043181,-1591.93,0.00014519,2]
[353019345,1739487043193,-611.37,0.00014519,2]
[353019348,1739487043206,-2775.18,0.00014519,2]
[353019350,1739487043220,-877.23,0.00014519,2]
[353019353,1739487043233,-504.22,0.00014519,2]
[353019355,1739487043246,-367.5648298,0.00014519,2]
[353019358,1739487043263,-285.48448275,0.00014519,2]
[353019375,1739487043419,-1042.49638483,0.00013745,2]
[353019377,1739487043429,-1006.22068745,0.00014519,2]
[353019379,1739487043439,-99.95778954,0.00014519,2]
[353019381,1739487043451,-632.42221046,0.00014519,2]
[353019383,1739487043463,-500.0,0.0001452,2]
[353019385,1739487043473,-516.65,0.0001452,2]
[353019387,1739487043483,-500.0,0.0001452,2]
[353019389,1739487043493,-968.56,0.0001452,2]
[353019391,1739487043503,-1000.0,0.0001452,3]
[353019393,1739487043512,-500.0,0.0001452,2]
[353019395,1739487043522,-500.0,0.0001452,2]
[353019397,1739487043531,-849.63,0.0001452,2]
[353019399,1739487043541,-153.35,0.00014575,2]
[353019401,1739487043551,-500.0,0.00014599,2]
[353019403,1739487043561,-2140.4,0.00014599,2]
[353019405,1739487043570,-500.0,0.000146,2]
[353019407,1739487043580,-182.52723961,0.000146,2]
[353019409,1739487043591,-1228.8,0.000146,2]
[353019411,1739487043600,-327.5368056,0.000146,2]
[353019413,1739487043613,-951.0,0.000146,2]
[353019415,1739487043625,-3708.9631944,0.000146,2]
[353019418,1739487043634,-500.0,0.000146,2]
[353019421,1739487043644,-560.27,0.000146,2]
[353019423,1739487043653,-992.98,0.000146,2]
[353019425,1739487043662,-3337.93,0.000146,2]
[353019427,1739487043671,-924.44,0.000146,2]
[353019429,1739487043680,-825.98,0.000146,2]
[353019431,1739487043689,-1340.76,0.000146,2]
[353019433,1739487043698,-2620.05,0.000146,2]
[353019435,1739487043708,-1967.28,0.000146,2]
[353019437,1739487043717,-500.0,0.000146,2]
[353019439,1739487043727,-1579.3,0.000146,2]
[353019441,1739487043736,-500.0,0.000146,2]
[353019443,1739487043746,-1314.28,0.00014601,2]
[353019445,1739487043755,-500.0,0.00014601,2]
[353019447,1739487043765,-1385.21,0.00014601,2]
[353019449,1739487043775,-500.0,0.00014601,2]
[353019451,1739487043784,-1270.53,0.00014601,2]
[353019453,1739487043794,-1591.93,0.00014601,2]
[353019455,1739487043804,-611.37,0.00014601,2]
[353019457,1739487043814,-2775.18,0.00014601,2]
[353019459,1739487043824,-877.23,0.00014601,2]
[353019461,1739487043834,-504.22,0.00014601,2]
[353019463,1739487043844,-1659.27,0.00014601,2]
[353019465,1739487043853,-732.38,0.00014601,2]
[353019467,1739487043863,-500.0,0.00014602,2]
[353019469,1739487043872,-516.65,0.00014602,2]
[353019471,1739487043882,-500.0,0.00014602,2]
[353019473,1739487043891,-968.56,0.00014602,2]
[353019475,1739487043901,-500.0,0.00014602,2]
[353019477,1739487043910,-500.0,0.00014602,2]
[353019479,1739487043921,-849.63,0.00014602,2]
[353019481,1739487043931,-500.0,0.00014681,2]
[353019483,1739487043940,-2140.4,0.00014681,2]
[353019485,1739487043949,-500.0,0.00014682,2]
[353019487,1739487043959,-1228.8,0.00014682,2]
[353019489,1739487043969,-4987.5,0.00014682,2]
[353019491,1739487043979,-500.0,0.00014682,2]
[353019493,1739487043988,-560.27,0.00014682,2]
[353019495,1739487043998,-992.98,0.00014682,2]
[353019497,1739487044008,-3337.93,0.00014682,2]
[353019499,1739487044018,-924.44,0.00014682,2]
[353019501,1739487044027,-825.98,0.00014682,2]
[353019503,1739487044037,-1340.76,0.00014682,2]
[353019505,1739487044046,-2620.05,0.00014682,2]
[353019507,1739487044056,-1967.28,0.00014682,2]
[353019509,1739487044065,-500.0,0.00014682,2]
[353019511,1739487044075,-1579.3,0.00014682,2]
[353019513,1739487044085,-500.0,0.00014682,2]
[353019515,1739487044095,-1314.28,0.00014683,2]
[353019517,1739487044105,-500.0,0.00014683,2]
[353019519,1739487044115,-1385.21,0.00014683,2]
[353019521,1739487044125,-600.1340993,0.00014683,2]
[353019523,1739487044135,-1270.53,0.00014683,2]
[353019525,1739487044144,-1591.93,0.00014683,2]
[353019527,1739487044154,-611.37,0.00014683,2]
[353019529,1739487044164,-2775.18,0.00014683,2]
[353019531,1739487044173,-877.23,0.00014683,2]
[353019533,1739487044185,-504.22,0.00014683,2]
[353019536,1739487044195,-1659.27,0.00014683,2]
[353019537,1739487044204,-732.38,0.00014683,2]
[353019538,1739487044214,-500.0,0.00014684,2]
[353019539,1739487044224,-516.65,0.00014684,2]
[353019540,1739487044233,-500.0,0.00014684,2]
[353019541,1739487044243,-968.56,0.00014684,2]
[353019542,1739487044252,-500.0,0.00014684,2]
[353019543,1739487044262,-302.24609764,0.00014684,2]
[353019544,1739487044274,-197.75390236,0.00014684,2]
[353019545,1739487044284,-849.63,0.00014684,2]
[353019546,1739487044294,-587.0,0.00014696,2]
[353019547,1739487044303,-171.3383029,0.000147,2]
[353019549,1739487044314,-500.0,0.00014763,2]
[353019551,1739487044323,-531.96024948,0.00014763,2]
[353019555,1739487044353,-628.67805,0.00014763,2]
[353019558,1739487044364,-979.76170052,0.00014763,2]
[353019559,1739487044373,-500.0,0.00014764,2]
[353019561,1739487044385,-1088.43325093,0.00014764,2]
[353019564,1739487044399,-140.36674907,0.00014764,2]
[353019565,1739487044408,-545.87958487,0.00014764,2]
[353019568,1739487044421,-1084.24,0.00014764,2]
[353019570,1739487044434,-2884.84977065,0.00014764,2]
[353019572,1739487044450,-472.53064448,0.00014764,2]
[353019575,1739487044461,-500.0,0.00014764,2]
[353019577,1739487044472,-560.27,0.00014764,2]
[353019578,1739487044482,-992.98,0.00014764,2]
[353019581,1739487044493,-2192.05478556,0.00014764,2]
[353019583,1739487044505,-344.1432138,0.00014764,2]
[353019585,1739487044516,-801.73200064,0.00014764,2]
[353019587,1739487044526,-924.44,0.00014764,2]
[353019589,1739487044536,-825.98,0.00014764,2]
[353019591,1739487044546,-1340.76,0.00014764,2]
[353019593,1739487044556,-2620.05,0.00014764,2]
[353019595,1739487044566,-1967.28,0.00014764,2]
[353019597,1739487044575,-500.0,0.00014764,2]
[353019599,1739487044585,-1579.3,0.00014764,2]
[353019601,1739487044595,-500.0,0.00014764,2]
[353019603,1739487044606,-1314.28,0.00014765,2]
[353019605,1739487044616,-500.0,0.00014765,2]
[353019607,1739487044626,-1385.21,0.00014765,2]
[353019609,1739487044636,-1270.53,0.00014765,2]
[353019611,1739487044645,-1591.93,0.00014765,2]
[353019613,1739487044655,-611.37,0.00014765,2]
[353019615,1739487044665,-2775.18,0.00014765,2]
[353019617,1739487044675,-877.23,0.00014765,2]
[353019619,1739487044684,-504.22,0.00014765,2]
[353019621,1739487044694,-1659.27,0.00014765,2]
[353019623,1739487044704,-732.38,0.00014765,2]
[353019625,1739487044712,-500.0,0.00014767,2]
[353019627,1739487044722,-516.65,0.00014767,2]
[353019629,1739487044731,-500.0,0.00014767,2]
[353019631,1739487044741,-968.56,0.00014767,2]
[353019633,1739487044751,-500.0,0.00014767,2]
[353019635,1739487044760,-204.02680558,0.00014767,2]
[353019637,1739487044769,-849.63,0.00014767,2]
[353019639,1739487044780,-1000.0,0.00014794,3]
[353019641,1739487044790,-900.0,0.000148,5]
[353019643,1739487044799,-163.20199948,0.00014801,2]
[353019645,1739487044809,-500.0,0.00014845,2]
[353019647,1739487044819,-2140.4,0.00014845,2]
[353019649,1739487044829,-500.0,0.00014846,2]
[353019651,1739487044839,-1228.8,0.00014846,2]
[353019653,1739487044849,-4987.5,0.00014846,2]
[353019655,1739487044860,-560.27,0.00014846,2]
[353019657,1739487044870,-500.0,0.00014846,2]
[353019659,1739487044881,-992.98,0.00014846,2]
[353019661,1739487044891,-3337.93,0.00014846,2]
[353019663,1739487044901,-924.44,0.00014846,2]
[353019665,1739487044910,-825.98,0.00014846,2]
[353019667,1739487044921,-1340.76,0.00014846,2]
[353019669,1739487044931,-2620.05,0.00014846,2]
[353019671,1739487044941,-1967.28,0.00014846,2]
[353019673,1739487044950,-500.0,0.00014846,2]
[353019675,1739487044960,-1579.3,0.00014846,2]
[353019678,1739487044971,-500.0,0.00014846,2]
[353019680,1739487044981,-1314.28,0.00014847,2]
[353019682,1739487044990,-500.0,0.00014847,2]
[353019684,1739487045001,-1385.21,0.00014847,2]
[353019686,1739487045011,-1270.53,0.00014847,2]
[353019688,1739487045020,-1591.93,0.00014847,2]
[353019690,1739487045030,-611.37,0.00014847,2]
[353019692,1739487045040,-2775.18,0.00014847,2]
[353019694,1739487045049,-877.23,0.00014847,2]
[353019696,1739487045060,-504.22,0.00014847,2]
[353019698,1739487045071,-1659.27,0.00014847,2]
[353019700,1739487045081,-732.38,0.00014847,2]
[353019702,1739487045091,-500.0,0.00014849,2]
[353019704,1739487045101,-516.65,0.00014849,2]
[353019706,1739487045110,-647.93315454,0.00014849,2]
[353019708,1739487045120,-968.56,0.00014849,2]
[353019710,1739487045130,-500.0,0.00014849,2]
[353019712,1739487045140,-849.63,0.00014849,2]
[353019714,1739487045149,-166.66,0.00014856,2]
[353019716,1739487045159,-500.0,0.00014873,2]
[353019718,1739487045169,-203.15424231,0.0001489,2]
[353019720,1739487045180,-1300.0,0.000149,5]
[353019722,1739487045189,-233571.90519393,0.000149,3]
[353019734,1739487045291,-401.0,0.000149,3]
[353019736,1739487045303,-6266.8835218,0.000149,3]
[353019738,1739487045315,-22491.7547035,0.000149,3]
[353019740,1739487045326,-16317.0032043,0.000149,3]
[353019742,1739487045338,-3593.28453605,0.000149,3]
[353019745,1739487045349,-800.069992,0.000149,3]
[353019747,1739487045361,-4971.80055815,0.000149,3]
[353019749,1739487045372,-3966.83190627,0.000149,3]
[353019751,1739487045389,-4325.99470946,0.000149,3]
[353019753,1739487045401,-71102.96588154,0.000149,3]
[353019755,1739487045411,-28293.0380159,0.000149,3]
[353019757,1739487045420,-500.0,0.00014927,2]
[353019759,1739487045432,-2140.4,0.00014927,2]